[Event "Titled Tuesday Blitz July 26 Early 2022"]
[White "Rangel, Daniel"]
[Black "Bryakin, Mikhail"]
[WhiteFideId "2124475"]
[BlackFideId "4165314"]
[WhiteElo "2225"]
[BlackElo "2422"]
[Result "0-1"]
[Round "01"]
[TimeControl "180+1"]
[Date "2022.07.27"]
[WhiteClock "0:00:07"]
[BlackClock "0:00:17"]

1. c4 {[%clk 0:03:00]}  g6 {[%clk 0:02:59]} 2. g3 {[%clk 0:02:58]}  Bg7 {[%clk 0:03:00]} 3. Bg2 {[%clk 0:02:58]}  e6 {[%clk 0:03:01]} 4. Nc3 {[%clk 0:02:58]}  Ne7 {[%clk 0:03:01]} 5. e4 {[%clk 0:02:58]}  h5 {[%clk 0:02:48]} 6. d4 {[%clk 0:02:45]}  h4 {[%clk 0:02:34]} 7. Bg5 {[%clk 0:02:40]}  hxg3 {[%clk 0:02:33]} 8. hxg3 {[%clk 0:02:37]}  Rxh1 {[%clk 0:02:34]} 9. Bxh1 {[%clk 0:02:38]}  f6 {[%clk 0:02:23]} 10. Be3 {[%clk 0:02:35]}  d6 {[%clk 0:02:13]} 11. Qg4 {[%clk 0:02:22]}  e5 {[%clk 0:02:06]} 12. Qh4 {[%clk 0:02:22]}  exd4 {[%clk 0:01:58]} 13. Bxd4 {[%clk 0:02:22]}  Nec6 {[%clk 0:01:58]} 14. Be3 {[%clk 0:02:14]}  Ne5 {[%clk 0:01:55]} 15. Qh7 {[%clk 0:01:43]}  Kf7 {[%clk 0:01:47]} 16. Nd5 {[%clk 0:01:24]}  Na6 {[%clk 0:01:35]} 17. O-O-O {[%clk 0:00:53]}  Qh8 {[%clk 0:01:26]} 18. Qxh8 {[%clk 0:00:53]}  Bxh8 {[%clk 0:01:27]} 19. b3 {[%clk 0:00:49]}  Ng4 {[%clk 0:01:18]} 20. Bf3 {[%clk 0:00:31]}  Nxe3 {[%clk 0:01:16]} 21. Nxe3 {[%clk 0:00:32]}  Rb8 {[%clk 0:00:53]} 22. Ne2 {[%clk 0:00:28]}  Nc5 {[%clk 0:00:50]} 23. Rh1 {[%clk 0:00:24]}  Bg7 {[%clk 0:00:43]} 24. Kd2 {[%clk 0:00:24]}  a5 {[%clk 0:00:40]} 25. Nc3 {[%clk 0:00:20]}  c6 {[%clk 0:00:38]} 26. Bg4 {[%clk 0:00:19]}  Be6 {[%clk 0:00:35]} 27. Bxe6+ {[%clk 0:00:19]}  Kxe6 {[%clk 0:00:34]} 28. f3 {[%clk 0:00:20]}  Rh8 {[%clk 0:00:33]} 29. Rxh8 {[%clk 0:00:18]}  Bxh8 {[%clk 0:00:34]} 30. Ne2 {[%clk 0:00:17]}  Bg7 {[%clk 0:00:31]} 31. Nd4+ {[%clk 0:00:16]}  Kf7 {[%clk 0:00:31]} 32. Nec2 {[%clk 0:00:14]}  Bh6+ {[%clk 0:00:28]} 33. Ke2 {[%clk 0:00:13]}  Bc1 {[%clk 0:00:21]} 34. a3 {[%clk 0:00:12]}  Bb2 {[%clk 0:00:20]} 35. b4 {[%clk 0:00:12]}  axb4 {[%clk 0:00:15]} 36. axb4 {[%clk 0:00:13]}  Nd7 {[%clk 0:00:14]} 37. b5 {[%clk 0:00:12]}  Nb8 {[%clk 0:00:10]} 38. bxc6 {[%clk 0:00:12]}  bxc6 {[%clk 0:00:11]} 39. Kd3 {[%clk 0:00:10]}  Bc1 {[%clk 0:00:11]} 40. Nb3 {[%clk 0:00:10]}  Bb2 {[%clk 0:00:09]} 41. Nb4 {[%clk 0:00:10]}  Ke6 {[%clk 0:00:08]} 42. Nc2 {[%clk 0:00:10]}  Kd7 {[%clk 0:00:07]} 43. Ne3 {[%clk 0:00:10]}  Na6 {[%clk 0:00:07]} 44. Ng4 {[%clk 0:00:09]}  f5 {[%clk 0:00:07]} 45. exf5 {[%clk 0:00:09]}  gxf5 {[%clk 0:00:07]} 46. Ne3 {[%clk 0:00:09]}  Ke6 {[%clk 0:00:08]} 47. Nd4+ {[%clk 0:00:09]}  Bxd4 {[%clk 0:00:09]} 48. Kxd4 {[%clk 0:00:09]}  Nc5 {[%clk 0:00:08]} 49. Ng2 {[%clk 0:00:09]}  Nb3+ {[%clk 0:00:08]} 50. Kc3 {[%clk 0:00:09]}  Nc1 {[%clk 0:00:09]} 51. Nf4+ {[%clk 0:00:09]}  Kf6 {[%clk 0:00:08]} 52. Kd2 {[%clk 0:00:09]}  Nb3+ {[%clk 0:00:08]} 53. Kc3 {[%clk 0:00:10]}  Nc5 {[%clk 0:00:09]} 54. Nd3 {[%clk 0:00:09]}  Nd7 {[%clk 0:00:06]} 55. Nb4 {[%clk 0:00:04]}  c5 {[%clk 0:00:06]} 56. Nd5+ {[%clk 0:00:04]}  Ke5 {[%clk 0:00:07]} 57. Kd3 {[%clk 0:00:04]}  Nb8 {[%clk 0:00:06]} 58. f4+ {[%clk 0:00:04]}  Ke6 {[%clk 0:00:07]} 59. Ne3 {[%clk 0:00:05]}  Nc6 {[%clk 0:00:07]} 60. g4 {[%clk 0:00:05]}  fxg4 {[%clk 0:00:08]} 61. Nxg4 {[%clk 0:00:05]}  Kf5 {[%clk 0:00:08]} 62. Ne3+ {[%clk 0:00:04]}  Kxf4 {[%clk 0:00:08]} 63. Nd5+ {[%clk 0:00:05]}  Ke5 {[%clk 0:00:09]} 64. Nc7 {[%clk 0:00:05]}  Kf6 {[%clk 0:00:07]} 65. Kc3 {[%clk 0:00:05]}  Ne5 {[%clk 0:00:07]} 66. Nd5+ {[%clk 0:00:05]}  Ke6 {[%clk 0:00:08]} 67. Nb6 {[%clk 0:00:05]}  Kf5 {[%clk 0:00:07]} 68. Nd5 {[%clk 0:00:05]}  Nf7 {[%clk 0:00:07]} 69. Nb6 {[%clk 0:00:06]}  Ke5 {[%clk 0:00:08]} 70. Nd5 {[%clk 0:00:06]}  Ke4 {[%clk 0:00:08]} 71. Nb6 {[%clk 0:00:07]}  Ng5 {[%clk 0:00:08]} 72. Nd5 {[%clk 0:00:07]}  Ne6 {[%clk 0:00:09]} 73. Nb6 {[%clk 0:00:07]}  Nd4 {[%clk 0:00:10]} 74. Nd5 {[%clk 0:00:07]}  Ne2+ {[%clk 0:00:10]} 75. Kd2 {[%clk 0:00:05]}  Nf4 {[%clk 0:00:11]} 76. Ne7 {[%clk 0:00:02]}  Kd4 {[%clk 0:00:10]} 77. Nc8 {[%clk 0:00:03]}  Ke5 {[%clk 0:00:11]} 78. Kc3 {[%clk 0:00:02]}  Ng6 {[%clk 0:00:10]} 79. Nb6 {[%clk 0:00:03]}  Ne7 {[%clk 0:00:11]} 80. Kd3 {[%clk 0:00:03]}  Ke6 {[%clk 0:00:10]} 81. Kc3 {[%clk 0:00:04]}  Nc6 {[%clk 0:00:10]} 82. Kd3 {[%clk 0:00:04]}  Ne5+ {[%clk 0:00:11]} 83. Kc3 {[%clk 0:00:04]}  Nf3 {[%clk 0:00:11]} 84. Kd3 {[%clk 0:00:05]}  Nd4 {[%clk 0:00:12]} 85. Kc3 {[%clk 0:00:05]}  Ke5 {[%clk 0:00:12]} 86. Kd3 {[%clk 0:00:05]}  Nb3 {[%clk 0:00:13]} 87. Nd5 {[%clk 0:00:05]}  Na5 {[%clk 0:00:13]} 88. Nb6 {[%clk 0:00:05]}  Nc6 {[%clk 0:00:13]} 89. Nd5 {[%clk 0:00:05]}  Nb4+ {[%clk 0:00:14]} 90. Nxb4 {[%clk 0:00:06]}  cxb4 {[%clk 0:00:14]} 91. Kc2 {[%clk 0:00:06]}  Kd4 {[%clk 0:00:15]} 92. Kb3 {[%clk 0:00:07]}  Kc5 {[%clk 0:00:16]} 93. Kb2 {[%clk 0:00:07]}  Kxc4 {[%clk 0:00:16]} 94. Kc2 {[%clk 0:00:07]}  d5 {[%clk 0:00:17]} 0-1


[Site "https://www.chess.com"]

[Event "Titled Tuesday Blitz July 26 Early 2022"]
[White "Richter, Nils"]
[Black "Aravindh, Chithambaram VR."]
[WhiteFideId "12990809"]
[BlackFideId "5072786"]
[WhiteElo "2311"]
[BlackElo "2577"]
[Result "0-1"]
[Round "01"]
[TimeControl "180+1"]
[Date "2022.07.26"]
[WhiteClock "0:01:10"]
[BlackClock "0:00:57"]

1. d4 {[%clk 0:03:00]}  g6 {[%clk 0:02:59]} 2. c4 {[%clk 0:03:01]}  Bg7 {[%clk 0:02:59]} 3. Nc3 {[%clk 0:03:02]}  c5 {[%clk 0:02:59]} 4. d5 {[%clk 0:03:01]}  d6 {[%clk 0:02:58]} 5. e4 {[%clk 0:03:00]}  Nf6 {[%clk 0:02:56]} 6. Bd3 {[%clk 0:02:58]}  O-O {[%clk 0:02:55]} 7. h3 {[%clk 0:02:53]}  e6 {[%clk 0:02:55]} 8. Nf3 {[%clk 0:02:53]}  exd5 {[%clk 0:02:54]} 9. exd5 {[%clk 0:02:54]}  Re8+ {[%clk 0:02:54]} 10. Be3 {[%clk 0:02:55]}  Nbd7 {[%clk 0:02:54]} 11. O-O {[%clk 0:02:55]}  a6 {[%clk 0:02:50]} 12. Bf4 {[%clk 0:02:53]}  Nh5 {[%clk 0:02:37]} 13. Bxd6 {[%clk 0:02:46]}  Qb6 {[%clk 0:02:37]} 14. Bh2 {[%clk 0:02:20]}  Qxb2 {[%clk 0:02:37]} 15. Ne4 {[%clk 0:02:20]}  Qxa1 {[%clk 0:01:59]} 16. Qxa1 {[%clk 0:02:21]}  Bxa1 {[%clk 0:02:00]} 17. Rxa1 {[%clk 0:02:22]}  b5 {[%clk 0:01:39]} 18. Nd6 {[%clk 0:02:18]}  bxc4 {[%clk 0:01:35]} 19. Bxc4 {[%clk 0:01:21]}  Re7 {[%clk 0:01:35]} 20. Nxc8 {[%clk 0:01:15]}  Rxc8 {[%clk 0:01:36]} 21. d6 {[%clk 0:01:15]}  Re4 {[%clk 0:01:06]} 22. Bxf7+ {[%clk 0:01:14]}  Kg7 {[%clk 0:01:05]} 23. Bd5 {[%clk 0:01:14]}  Re2 {[%clk 0:01:03]} 24. Ng5 {[%clk 0:01:10]}  Rce8 {[%clk 0:00:58]} 25. Bc6 {[%clk 0:01:10]}  Re1+ {[%clk 0:00:57]} 0-1


[Site "https://www.chess.com"]

[Event "Titled Tuesday Blitz July 26 Early 2022"]
[White "Rustemov, Alexander"]
[Black "Derjabin, Ilja"]
[WhiteFideId "4119002"]
[BlackFideId "14104768"]
[WhiteElo "2814"]
[BlackElo "2341"]
[Result "1-0"]
[Round "01"]
[TimeControl "180+1"]
[Date "2022.07.26"]
[WhiteClock "0:01:08"]
[BlackClock "0:00:35"]

1. d4 {[%clk 0:03:00]}  Nf6 {[%clk 0:02:57]} 2. c4 {[%clk 0:03:01]}  d6 {[%clk 0:02:55]} 3. Nf3 {[%clk 0:03:01]}  Bf5 {[%clk 0:02:53]} 4. Qb3 {[%clk 0:02:59]}  Qc8 {[%clk 0:02:52]} 5. g3 {[%clk 0:02:58]}  c6 {[%clk 0:02:42]} 6. Bg2 {[%clk 0:02:58]}  h6 {[%clk 0:02:40]} 7. O-O {[%clk 0:02:58]}  Nbd7 {[%clk 0:02:41]} 8. Nc3 {[%clk 0:02:46]}  Ne4 {[%clk 0:02:39]} 9. Nh4 {[%clk 0:02:40]}  Nxc3 {[%clk 0:02:39]} 10. Qxc3 {[%clk 0:02:39]}  Bh7 {[%clk 0:02:35]} 11. e4 {[%clk 0:02:38]}  e6 {[%clk 0:02:29]} 12. d5 {[%clk 0:02:18]}  cxd5 {[%clk 0:02:23]} 13. exd5 {[%clk 0:02:18]}  e5 {[%clk 0:02:20]} 14. Bh3 {[%clk 0:02:13]}  Be7 {[%clk 0:02:13]} 15. Nf5 {[%clk 0:02:12]}  Bxf5 {[%clk 0:02:11]} 16. Bxf5 {[%clk 0:02:12]}  Qc7 {[%clk 0:02:12]} 17. Be3 {[%clk 0:02:07]}  O-O {[%clk 0:02:01]} 18. Rac1 {[%clk 0:02:05]}  Bg5 {[%clk 0:01:49]} 19. Bxg5 {[%clk 0:01:55]}  hxg5 {[%clk 0:01:48]} 20. Qe3 {[%clk 0:01:54]}  g6 {[%clk 0:01:37]} 21. Bxd7 {[%clk 0:01:53]}  Qxd7 {[%clk 0:01:38]} 22. Qxg5 {[%clk 0:01:54]}  Rac8 {[%clk 0:01:33]} 23. h4 {[%clk 0:01:49]}  Qh3 {[%clk 0:01:30]} 24. Qf6 {[%clk 0:01:44]}  Rfd8 {[%clk 0:01:18]} 25. Rfd1 {[%clk 0:01:38]}  Rd7 {[%clk 0:01:15]} 26. a4 {[%clk 0:01:33]}  a6 {[%clk 0:01:02]} 27. b4 {[%clk 0:01:32]}  Qg4 {[%clk 0:01:00]} 28. c5 {[%clk 0:01:19]}  dxc5 {[%clk 0:00:58]} 29. bxc5 {[%clk 0:01:16]}  Rxc5 {[%clk 0:00:58]} 30. Rxc5 {[%clk 0:01:11]}  Qxd1+ {[%clk 0:00:57]} 31. Kg2 {[%clk 0:01:09]}  Kh7 {[%clk 0:00:37]} 32. Rc8 {[%clk 0:01:09]}  Qxd5+ {[%clk 0:00:35]} 33. Kh2 {[%clk 0:01:08]} 1-0


[Site "https://www.chess.com"]

[Event "Titled Tuesday Blitz July 26 Early 2022"]
[White "Sarana, Alexey"]
[Black "Jarmula, Lukasz"]
[WhiteFideId "24133795"]
[BlackFideId "1160664"]
[WhiteElo "2666"]
[BlackElo "2246"]
[Result "1-0"]
[Round "01"]
[TimeControl "180+1"]
[Date "2022.07.26"]
[WhiteClock "0:01:07"]
[BlackClock "0:00:11"]

1. c4 {[%clk 0:02:37]}  e5 {[%clk 0:02:58]} 2. g3 {[%clk 0:02:33]}  Nf6 {[%clk 0:02:58]} 3. Bg2 {[%clk 0:02:33]}  Bc5 {[%clk 0:02:54]} 4. e3 {[%clk 0:02:30]}  c6 {[%clk 0:02:52]} 5. Ne2 {[%clk 0:02:30]}  d5 {[%clk 0:02:52]} 6. cxd5 {[%clk 0:02:30]}  cxd5 {[%clk 0:02:52]} 7. d4 {[%clk 0:02:29]}  exd4 {[%clk 0:02:52]} 8. Nxd4 {[%clk 0:02:30]}  O-O {[%clk 0:02:52]} 9. O-O {[%clk 0:02:30]}  Bg4 {[%clk 0:02:51]} 10. Qd3 {[%clk 0:02:27]}  Nc6 {[%clk 0:02:50]} 11. Nxc6 {[%clk 0:02:27]}  bxc6 {[%clk 0:02:50]} 12. b3 {[%clk 0:02:27]}  Qe7 {[%clk 0:02:42]} 13. Bb2 {[%clk 0:02:27]}  Rad8 {[%clk 0:02:33]} 14. Nc3 {[%clk 0:02:19]}  d4 {[%clk 0:02:28]} 15. exd4 {[%clk 0:02:17]}  Bxd4 {[%clk 0:02:27]} 16. Qc4 {[%clk 0:02:16]}  Qc5 {[%clk 0:02:08]} 17. Qxc5 {[%clk 0:02:09]}  Bxc5 {[%clk 0:02:08]} 18. Na4 {[%clk 0:02:10]}  Bd4 {[%clk 0:02:05]} 19. Bxc6 {[%clk 0:01:52]}  Bxb2 {[%clk 0:01:52]} 20. Nxb2 {[%clk 0:01:53]}  Be2 {[%clk 0:01:52]} 21. Rfc1 {[%clk 0:01:48]}  Rd2 {[%clk 0:01:41]} 22. Nc4 {[%clk 0:01:47]}  Bxc4 {[%clk 0:01:41]} 23. Rxc4 {[%clk 0:01:48]}  h5 {[%clk 0:01:39]} 24. h3 {[%clk 0:01:47]}  Rfd8 {[%clk 0:01:34]} 25. b4 {[%clk 0:01:47]}  Rb2 {[%clk 0:01:32]} 26. a4 {[%clk 0:01:36]}  Rdd2 {[%clk 0:01:24]} 27. Rf4 {[%clk 0:01:36]}  h4 {[%clk 0:01:08]} 28. gxh4 {[%clk 0:01:28]}  Nh5 {[%clk 0:01:08]} 29. Rf3 {[%clk 0:01:27]}  Rxb4 {[%clk 0:01:07]} 30. Re1 {[%clk 0:01:19]}  Nf6 {[%clk 0:00:59]} 31. Re7 {[%clk 0:01:11]}  a5 {[%clk 0:00:47]} 32. Ra7 {[%clk 0:01:09]}  Rc2 {[%clk 0:00:35]} 33. Bb5 {[%clk 0:01:08]}  Rxh4 {[%clk 0:00:14]} 34. Ra8+ {[%clk 0:01:07]}  Kh7 {[%clk 0:00:11]} 35. Bd3+ {[%clk 0:01:07]}  g6 {[%clk 0:00:11]} 36. Bxc2 {[%clk 0:01:07]} 1-0


[Site "https://www.chess.com"]

[Event "Titled Tuesday Blitz July 26 Early 2022"]
[White "Senlle Caride, Miguel"]
[Black "Arias, Juan Cruz"]
[WhiteFideId "2282500"]
[BlackFideId "118540"]
[WhiteElo "2339"]
[BlackElo "2091"]
[Result "1-0"]
[Round "01"]
[TimeControl "180+1"]
[Date "2022.07.27"]
[WhiteClock "0:00:04"]
[BlackClock "0:00:15"]

1. e4 {[%clk 0:02:57]}  e6 {[%clk 0:02:59]} 2. d4 {[%clk 0:02:56]}  d5 {[%clk 0:02:59]} 3. e5 {[%clk 0:02:57]}  c5 {[%clk 0:02:57]} 4. c3 {[%clk 0:02:57]}  Ne7 {[%clk 0:02:56]} 5. Nf3 {[%clk 0:02:48]}  Nec6 {[%clk 0:02:55]} 6. Bd3 {[%clk 0:02:44]}  b6 {[%clk 0:02:52]} 7. Qe2 {[%clk 0:02:25]}  a5 {[%clk 0:02:50]} 8. Na3 {[%clk 0:02:23]}  cxd4 {[%clk 0:02:41]} 9. Nb5 {[%clk 0:02:22]}  dxc3 {[%clk 0:02:37]} 10. bxc3 {[%clk 0:02:23]}  Be7 {[%clk 0:02:30]} 11. Bf4 {[%clk 0:01:51]}  Nd7 {[%clk 0:02:25]} 12. a4 {[%clk 0:01:26]}  Nc5 {[%clk 0:02:23]} 13. Bc2 {[%clk 0:01:27]}  Ba6 {[%clk 0:02:21]} 14. O-O {[%clk 0:01:24]}  h6 {[%clk 0:02:16]} 15. h4 {[%clk 0:01:16]}  O-O {[%clk 0:02:10]} 16. h5 {[%clk 0:01:08]}  f5 {[%clk 0:02:08]} 17. exf6 {[%clk 0:01:04]}  Bxf6 {[%clk 0:02:06]} 18. Qe3 {[%clk 0:00:45]}  Re8 {[%clk 0:01:29]} 19. Bc7 {[%clk 0:00:30]}  Qd7 {[%clk 0:01:20]} 20. Bxb6 {[%clk 0:00:30]}  Nb7 {[%clk 0:01:16]} 21. Qd3 {[%clk 0:00:23]}  e5 {[%clk 0:01:16]} 22. Qh7+ {[%clk 0:00:22]}  Kf8 {[%clk 0:01:16]} 23. Bg6 {[%clk 0:00:08]}  Rec8 {[%clk 0:01:15]} 24. Bf5 {[%clk 0:00:06]}  Qf7 {[%clk 0:01:14]} 25. Bxc8 {[%clk 0:00:05]}  Rxc8 {[%clk 0:01:15]} 26. Qh8+ {[%clk 0:00:04]}  Qg8 {[%clk 0:01:14]} 27. Qxg8+ {[%clk 0:00:05]}  Kxg8 {[%clk 0:01:15]} 28. Rfd1 {[%clk 0:00:05]}  Ne7 {[%clk 0:01:12]} 29. Nc7 {[%clk 0:00:04]}  Bc4 {[%clk 0:01:10]} 30. Rab1 {[%clk 0:00:04]}  Nd6 {[%clk 0:01:04]} 31. Ne6 {[%clk 0:00:04]}  Ne4 {[%clk 0:01:02]} 32. Bxa5 {[%clk 0:00:04]}  Nc6 {[%clk 0:01:01]} 33. Bb6 {[%clk 0:00:03]}  Nxc3 {[%clk 0:00:59]} 34. a5 {[%clk 0:00:03]}  e4 {[%clk 0:00:48]} 35. Nd2 {[%clk 0:00:02]}  Nxd1 {[%clk 0:00:45]} 36. Rxd1 {[%clk 0:00:03]}  Ba6 {[%clk 0:00:44]} 37. Nc7 {[%clk 0:00:02]}  Be2 {[%clk 0:00:43]} 38. Re1 {[%clk 0:00:02]}  Bd3 {[%clk 0:00:42]} 39. Nxd5 {[%clk 0:00:02]}  Be5 {[%clk 0:00:42]} 40. Nxe4 {[%clk 0:00:03]}  Re8 {[%clk 0:00:30]} 41. Nc5 {[%clk 0:00:03]}  Bh2+ {[%clk 0:00:29]} 42. Kxh2 {[%clk 0:00:03]}  Rxe1 {[%clk 0:00:29]} 43. Nxd3 {[%clk 0:00:04]}  Rd1 {[%clk 0:00:29]} 44. N3b4 {[%clk 0:00:03]}  Nb8 {[%clk 0:00:24]} 45. a6 {[%clk 0:00:02]}  Nxa6 {[%clk 0:00:24]} 46. Ne3 {[%clk 0:00:01]}  Ra1 {[%clk 0:00:19]} 47. Nxa6 {[%clk 0:00:02]}  Rxa6 {[%clk 0:00:20]} 48. Bd4 {[%clk 0:00:03]}  Kf7 {[%clk 0:00:20]} 49. g4 {[%clk 0:00:02]}  Ra4 {[%clk 0:00:20]} 50. Bc3 {[%clk 0:00:02]}  Ra3 {[%clk 0:00:18]} 51. Be5 {[%clk 0:00:02]}  Ra5 {[%clk 0:00:18]} 52. Bd4 {[%clk 0:00:02]}  Ra2 {[%clk 0:00:18]} 53. Nf5 {[%clk 0:00:02]}  g6 {[%clk 0:00:16]} 54. hxg6+ {[%clk 0:00:02]}  Kxg6 {[%clk 0:00:17]} 55. Kg3 {[%clk 0:00:02]}  h5 {[%clk 0:00:17]} 56. Nh4+ {[%clk 0:00:03]}  Kh6 {[%clk 0:00:16]} 57. Be3+ {[%clk 0:00:03]}  Kg7 {[%clk 0:00:16]} 58. gxh5 {[%clk 0:00:04]}  Ra4 {[%clk 0:00:16]} 59. f4 {[%clk 0:00:03]}  Ra5 {[%clk 0:00:15]} 60. Kg4 {[%clk 0:00:04]}  Kh7 {[%clk 0:00:15]} 61. Bd4 {[%clk 0:00:03]}  Ra1 {[%clk 0:00:15]} 62. Be5 {[%clk 0:00:03]}  Rg1+ {[%clk 0:00:14]} 63. Kf5 {[%clk 0:00:04]}  Rh1 {[%clk 0:00:14]} 64. Kg4 {[%clk 0:00:03]}  Rg1+ {[%clk 0:00:14]} 65. Kf3 {[%clk 0:00:04]}  Rh1 {[%clk 0:00:13]} 66. Kg3 {[%clk 0:00:04]}  Rg1+ {[%clk 0:00:13]} 67. Kh2 {[%clk 0:00:04]}  Rg4 {[%clk 0:00:12]} 68. Kh3 {[%clk 0:00:05]}  Rg1 {[%clk 0:00:12]} 69. Nf5 {[%clk 0:00:05]}  Rh1+ {[%clk 0:00:11]} 70. Kg4 {[%clk 0:00:05]}  Rg1+ {[%clk 0:00:12]} 71. Ng3 {[%clk 0:00:05]}  Rb1 {[%clk 0:00:13]} 72. f5 {[%clk 0:00:05]}  Rb4+ {[%clk 0:00:13]} 73. Kg5 {[%clk 0:00:06]}  Rb1 {[%clk 0:00:14]} 74. f6 {[%clk 0:00:05]}  Rg1 {[%clk 0:00:15]} 75. f7 {[%clk 0:00:04]}  Rxg3+ {[%clk 0:00:13]} 76. Bxg3 {[%clk 0:00:04]}  Kg7 {[%clk 0:00:14]} 77. Be5+ {[%clk 0:00:03]}  Kxf7 {[%clk 0:00:15]} 78. h6 {[%clk 0:00:03]}  Kg8 {[%clk 0:00:15]} 79. Kg6 {[%clk 0:00:04]} 1-0


[Site "https://www.chess.com"]

[Event "Titled Tuesday Blitz July 26 Early 2022"]
[White "Shtyka, Sergey"]
[Black "Melkumyan, Hrant"]
[WhiteFideId "4138465"]
[BlackFideId "13302485"]
[WhiteElo "1995"]
[BlackElo "2604"]
[Result "0-1"]
[Round "01"]
[TimeControl "180+1"]
[Date "2022.07.26"]
[WhiteClock "0:00:23"]
[BlackClock "0:01:15"]

1. e4 {[%clk 0:02:54]}  e6 {[%clk 0:02:59]} 2. Nf3 {[%clk 0:02:54]}  d5 {[%clk 0:03:00]} 3. Nc3 {[%clk 0:02:53]}  dxe4 {[%clk 0:02:58]} 4. Nxe4 {[%clk 0:02:53]}  Bd7 {[%clk 0:02:59]} 5. d4 {[%clk 0:02:51]}  Bc6 {[%clk 0:02:59]} 6. Bd3 {[%clk 0:02:49]}  Nd7 {[%clk 0:03:00]} 7. O-O {[%clk 0:02:46]}  Ngf6 {[%clk 0:03:00]} 8. Nxf6+ {[%clk 0:02:43]}  Nxf6 {[%clk 0:03:01]} 9. c3 {[%clk 0:02:41]}  Bd6 {[%clk 0:03:00]} 10. Bg5 {[%clk 0:02:40]}  h6 {[%clk 0:02:59]} 11. Bh4 {[%clk 0:02:40]}  O-O {[%clk 0:02:40]} 12. Bg3 {[%clk 0:02:39]}  a5 {[%clk 0:02:39]} 13. Be5 {[%clk 0:02:36]}  a4 {[%clk 0:02:38]} 14. Re1 {[%clk 0:02:34]}  Ra5 {[%clk 0:02:36]} 15. Bxd6 {[%clk 0:02:20]}  cxd6 {[%clk 0:02:34]} 16. Qe2 {[%clk 0:02:18]}  Qb6 {[%clk 0:02:32]} 17. Rad1 {[%clk 0:02:16]}  Bxf3 {[%clk 0:02:30]} 18. Qxf3 {[%clk 0:02:06]}  Qxb2 {[%clk 0:02:23]} 19. Rb1 {[%clk 0:02:06]}  Qxa2 {[%clk 0:02:21]} 20. Rxb7 {[%clk 0:02:05]}  Qd5 {[%clk 0:02:20]} 21. Qxd5 {[%clk 0:02:03]}  Nxd5 {[%clk 0:02:19]} 22. c4 {[%clk 0:02:03]}  Nf4 {[%clk 0:02:18]} 23. Bf1 {[%clk 0:02:02]}  a3 {[%clk 0:02:18]} 24. Ra1 {[%clk 0:02:02]}  e5 {[%clk 0:01:55]} 25. c5 {[%clk 0:01:48]}  dxc5 {[%clk 0:01:51]} 26. dxe5 {[%clk 0:01:47]}  Ng6 {[%clk 0:01:45]} 27. e6 {[%clk 0:01:44]}  fxe6 {[%clk 0:01:45]} 28. Bc4 {[%clk 0:01:45]}  Nf4 {[%clk 0:01:42]} 29. Re7 {[%clk 0:01:38]}  Ra4 {[%clk 0:01:36]} 30. Bxe6+ {[%clk 0:01:35]}  Nxe6 {[%clk 0:01:35]} 31. Rxe6 {[%clk 0:01:36]}  Rb8 {[%clk 0:01:31]} 32. Kf1 {[%clk 0:01:25]}  a2 {[%clk 0:01:29]} 33. Re2 {[%clk 0:01:16]}  Rb1+ {[%clk 0:01:28]} 34. Re1 {[%clk 0:01:16]}  Rxa1 {[%clk 0:01:29]} 35. Rxa1 {[%clk 0:01:16]}  Kf7 {[%clk 0:01:30]} 36. Ke2 {[%clk 0:01:16]}  Ke6 {[%clk 0:01:30]} 37. Kd3 {[%clk 0:01:17]}  Kd5 {[%clk 0:01:28]} 38. f3 {[%clk 0:01:13]}  c4+ {[%clk 0:01:22]} 39. Kc3 {[%clk 0:01:12]}  Kc5 {[%clk 0:01:23]} 40. f4 {[%clk 0:01:05]}  Ra3+ {[%clk 0:01:19]} 41. Kb2 {[%clk 0:01:01]}  Kb4 {[%clk 0:01:19]} 42. g4 {[%clk 0:00:57]}  Rf3 {[%clk 0:01:19]} 43. Rxa2 {[%clk 0:00:49]}  Rxf4 {[%clk 0:01:18]} 44. Ra8 {[%clk 0:00:44]}  Rf2+ {[%clk 0:01:17]} 45. Kc1 {[%clk 0:00:44]}  Rxh2 {[%clk 0:01:18]} 46. Rg8 {[%clk 0:00:41]}  g5 {[%clk 0:01:15]} 47. Rb8+ {[%clk 0:00:37]}  Kc3 {[%clk 0:01:15]} 48. Kb1 {[%clk 0:00:38]}  Rh1+ {[%clk 0:01:15]} 49. Ka2 {[%clk 0:00:37]}  Rh4 {[%clk 0:01:16]} 50. Rb6 {[%clk 0:00:32]}  Kc2 {[%clk 0:01:15]} 51. Rb4 {[%clk 0:00:29]}  c3 {[%clk 0:01:15]} 52. Rd4 {[%clk 0:00:28]}  h5 {[%clk 0:01:14]} 53. Rd5 {[%clk 0:00:23]}  Rxg4 {[%clk 0:01:14]} 54. Ra5 {[%clk 0:00:23]}  h4 {[%clk 0:01:15]} 0-1


[Site "https://www.chess.com"]